[Event "SixDays Budapest March IM 2023"]
[Site "Budapest"]
[Date "2023.03.28"]
[Round "8.1"]
[White "Pham, Tran Gia Phuc"]
[Black "Halak, Miklos"]
[Result "1-0"]
[ECO "D02"]
[WhiteElo "2238"]
[BlackElo "2257"]
[Annotator "TA"]
[PlyCount "53"]
[EventDate "2023.03.24"]
[EventType "tourn"]
[EventCountry "HUN"]
[SourceTitle "playchess.com"]
[Source "ChessBase"]
[SourceQuality "1"]
[TimeControl "5400+30"]

{[%evp 10,52,12,6,12,0,6,0,6,11,9,0,5,-30,-25,-21,-8,-8,-11,-26,0,0,2,0,45,-10,102,97,85,120,116,102,29976,29977,2016,1413,29996,29997,29997,29996,29996,29997,29997,29998,29999]} 1. d4 {[%emt 0:00:31]} d5 {[%emt 0:08:21]} 2. Nf3 {[%emt 0:00:05]} e6 {[%emt 0:00:04]} 3. Bf4 {[%emt 0:00:05]} Bd6 {[%emt 0:00:04]} 4. e3 {[%emt 0:00:04]} Bxf4 {[%emt 0:00:48]} 5. exf4 {[%emt 0:00:06]} Nf6 {[%emt 0:00:38]} 6. Nbd2 {[%emt 0:00:06]} O-O {[%emt 0:00:28] D02: 1 d4 d5 2 Nf3 sidelines, including 2...Nf6 3 g3 and 2...Nf6 3 Bf4.} 7. Bd3 {[%emt 0:00:16]} b6 {[%emt 0:00:12]} 8. h4 {[%emt 0:00:24][%cal Bh2h4,Bh4h5,Bh5h6][%mdl 32]} Ba6 {[%emt 0:01:12] The position is equal.} 9. Bxa6 {[%emt 0:00:06]} Nxa6 {[%emt 0:00:06][%cal Bb8a6,Ba6c5,Bc5e4][%mdl 32] [#]} 10. h5 $146 {[%emt 0:00:02]} ({Predecessor:} 10. c3 c5 11. Qe2 Nc7 12. h5 h6 13. Ne5 cxd4 14. cxd4 Qe8 15. g4 Qb5 16. g5 {0-1 Indjic,A (2605)-Shuvalova,P (2504) Titled Tuesday intern op 22 Mar Early blitz 2022 (8)}) 10... c5 {[%emt 0:00:56]} 11. c3 {[%emt 0:03:17]} cxd4 {[%emt 0:00:46]} 12. Nxd4 {[%emt 0:03:06]} Qc7 {[%emt 0:01:26]} 13. g3 {[%emt 0:02:03]} Nc5 {[%emt 0:01:19] ...Nd3+ would be deadly.} 14. N2f3 {[%emt 0:04:54]} Rab8 {[%emt 0:05:50]} 15. h6 {[%emt 0:00:29] Black should prevent hxg7.} g6 {[%emt 0:00:23]} 16. Ne5 {[%emt 0:00:03]} b5 {[%emt 0:01:57]} 17. Ndc6 {[%emt 0:00:15]} ({White should try} 17. O-O $14) 17... Rb6 {[%emt 0:08:33] Black is weak on the dark squares} (17... Rb7 $1 $11) 18. Qd4 $16 {[%emt 0:04:07]} Nce4 {[%emt 0:03:47] [#]} (18... Rxc6 $2 19. Nxc6 Nce4 20. Ne5 $18 (20. Nxa7 Qb7 $16)) 19. f3 $1 $36 {[%emt 0:07:02][%mdl 2048] Black is under strong pressure. White is more active.} ({Don't play} 19. Ng4 $6 Ne8 20. Nb4 a5 $11) 19... Nxg3 {[%emt 0:06:25] ...Nfh5 is the strong threat.} 20. Nd7 {[%emt 0:00:06] White wants to mate with Ne7+. Really sharp!} Qxd7 {[%emt 0:01:07][%mdl 8192] [#] Black cannot hold the game after this.} (20... Rxc6 $16 21. Nxf6+ Kh8 22. Nxd5+ e5 23. fxe5 (23. Qxe5+ $2 {perishes.} Qxe5+ 24. fxe5 Nxh1 $19) 23... Qb8) 21. Qxf6 $1 {[%emt 0:00:06][%csl Gh6][%cal Rf6g7]} Nf5 {[%emt 0:00:08] [#]} 22. Rh5 $3 {[%emt 0:00:04][%cal Oh5f5][%mdl 512] Intending Rxf5! and mate.} Re8 {[%emt 0:13:01] [#]} (22... Nxh6 23. Ne7+) 23. Rxf5 $1 {[%emt 0:01:32][%mdl 512] White mates.} exf5+ {[%emt 0:00:11]} 24. Kd1 {[%emt 0:00:04][%csl Gh6][%cal Rf6g7,Be1d1,Bd1c2,Bc2b3][%mdl 32]} Re1+ {[%emt 0:00:16]} 25. Kc2 {[%emt 0:00:22][%csl Gh6][%cal Rf6g7]} Re2+ {[%emt 0:00:26]} 26. Kb3 {[%emt 0:00:06][%csl Gh6][%cal Rf6g7]} Qxc6 {[%emt 0:01:24]} 27. Qg7# {[%emt 0:00:05] Ingenious play by Pham!   Weighted Error Value: White=0.06 (flawless) /Black=0.71} 1-0

[Event "SixDays Budapest March IM 2023"]
[Site "Budapest"]
[Date "2023.03.28"]
[Round "8.2"]
[White "Balogh, Peter"]
[Black "Gandhi, Anish"]
[Result "1-0"]
[ECO "B94"]
[WhiteElo "2264"]
[BlackElo "2187"]
[Annotator "TA"]
[PlyCount "53"]
[EventDate "2023.03.24"]
[EventType "tourn"]
[EventCountry "HUN"]
[SourceTitle "playchess.com"]
[Source "ChessBase"]
[SourceQuality "1"]
[TimeControl "5400+30"]

{[%evp 12,53,25,13,19,18,18,5,31,0,4,0,0,0,0,0,0,0,41,-32,9,-64,-84,-52,0,-2,-17,-34,-29,-134,748,600,1195,1176,1639,1633,1883,1785,29993,29994,29994,29995,29997,29998]} 1. e4 {[%emt 0:02:23]} c5 {[%emt 0:00:35]} 2. Nf3 {[%emt 0:00:06]} d6 {[%emt 0:00:04]} 3. d4 {[%emt 0:00:06]} cxd4 {[%emt 0:00:03]} 4. Nxd4 {[%emt 0:00:07]} Nf6 {[%emt 0:00:03]} 5. Nc3 {[%emt 0:00:09]} a6 {[%emt 0:00:06]} 6. Bg5 {[%emt 0:00:36]} Nbd7 {[%emt 0:00:06]} 7. Bc4 {[%emt 0:00:24]} Qb6 {[%emt 0:00:32] B94: Sicilian Najdorf: 6 Bg5 Nbd7.} 8. Bb3 {[%emt 0:00:39]} e6 $1 {[%emt 0:00:58]} 9. Qd2 {[%emt 0:02:06]} Nc5 {[%emt 0:00:42] The position is equal.} 10. f3 {[%emt 0:00:58]} Be7 {[%emt 0:00:58]} 11. O-O-O {[%emt 0:00:23]} Qc7 {[%emt 0:02:03]} 12. Kb1 {[%emt 0:01:54]} O-O {[%emt 0:02:28]} 13. g4 {[%emt 0:00:36][%cal Bg2g4,Bg4g5,Bg5g6,Bg6g7][%mdl 32]} b5 {[%emt 0:00:52]} 14. h4 {[%emt 0:00:18]} b4 {[%emt 0:18:22]} 15. Nce2 {[%emt 0:01:56]} (15. Na4 $1 $14) 15... Rb8 {[%emt 0:02:56]} 16. Bxf6 {[%emt 0:00:59]} (16. Nf4 $11) 16... Bxf6 $15 {[%emt 0:00:47]} 17. g5 {[%emt 0:00:08]} Be7 {[%emt 0:04:59]} (17... Be5 $15) 18. h5 {[%emt 0:00:27]} a5 {[%emt 0:03:42] Strongly threatening ...a4.} 19. g6 {[%emt 0:00:35] [#] And now h6 would win.} h6 $146 {[%emt 0:03:07] ...a4 is the strong threat.} ({Predecessor:} 19... Bf6 20. Qe3 a4 21. gxf7+ Rxf7 22. Bc4 Bd7 23. f4 Nxe4 24. Bxe6 Bxe6 25. Nxe6 Qc4 {0-1 Nikolakis,P (1900)-Nikolaidis,K (2181) Thessaloniki op 1st 2022 (6)}) 20. Rdg1 {[%emt 0:02:06]} (20. Qe3 $11) 20... f6 $2 {[%emt 0:05:54][%mdl 8192] [#] This costs Black the game.} (20... a4 $17 21. Bc4 Nxe4 {[%mdl 64] Discovered Attack} 22. fxe4 Qxc4) 21. Nf5 $1 $18 {[%emt 0:04:35][%cal Of5h6] Threatening mate with Nxh6+!} Rd8 {[%emt 0:17:29] [#]} 22. Nxh6+ $1 {[%emt 0:05:50][%mdl 512]} gxh6 {[%emt 0:00:14]} (22... Kf8 23. Nf7) 23. g7 {[%emt 0:01:40]} Nxb3 {[%emt 0:13:13]} 24. Qxh6 {[%emt 0:02:06] White wants to mate with Qh8+.} Nd2+ {[%emt 0:02:39]} 25. Ka1 {[%emt 0:01:26] White mates.} Ba6 {[%emt 0:09:57] [#]} 26. Qg6 $1 {[%emt 0:04:04]} Nxe4 {[%emt 0:08:58]} (26... Qc4 27. h6) 27. h6 {[%emt 0:01:07] Beautiful play by Balogh!   Weighted Error Value: White=0.21 (precise) /Black=0.48} 1-0

[Event "SixDays Budapest March IM 2023"]
[Site "Budapest"]
[Date "2023.03.28"]
[Round "8.3"]
[White "To, Nhat Minh"]
[Black "Ulasevich, Sergei"]
[Result "1-0"]
[ECO "B62"]
[WhiteElo "2342"]
[BlackElo "2236"]
[Annotator "TA"]
[PlyCount "79"]
[EventDate "2023.03.24"]
[EventType "tourn"]
[EventCountry "HUN"]
[SourceTitle "playchess.com"]
[Source "ChessBase"]
[SourceQuality "1"]
[TimeControl "5400+30"]

{[%evp 12,79,25,16,8,-53,33,39,35,18,12,0,54,38,67,27,39,0,24,16,20,27,27,0,0,-18,-16,-40,-52,-42,2,12,30,22,16,27,75,64,123,113,287,296,292,291,276,204,225,222,226,203,233,130,127,113,491,488,916,896,1291,1135,1669,1606,29968,29969,29969,29950,29995,29996,29996,29997]} 1. e4 {[%emt 0:00:34]} c5 {[%emt 0:00:36]} 2. Nf3 {[%emt 0:00:03]} d6 {[%emt 0:00:17]} 3. d4 {[%emt 0:00:32]} cxd4 {[%emt 0:00:06]} 4. Nxd4 {[%emt 0:00:11]} Nf6 {[%emt 0:00:07]} 5. Nc3 {[%emt 0:00:47]} Nc6 {[%emt 0:00:15]} 6. Bg5 {[%emt 0:01:13]} e6 {[%emt 0:00:08]} 7. Qd3 {[%emt 0:00:04]} Be7 {[%emt 0:03:08] Recently 7...Bd7 got a lot of attention. B62: Sicilian: Richter-Rauzer: 6...e6: Unusual White 7th moves.} 8. Bxf6 {[%emt 0:01:24]} (8. O-O-O $11) 8... gxf6 {[%emt 0:01:21] Black is weak on the light squares} ({Black should play} 8... Bxf6 $15 9. Ndb5 O-O) 9. O-O-O {[%emt 0:00:13]} a6 {[%emt 0:00:40] [#] Prevents Ndb5. White is slightly better.} 10. Nb3 $146 {[%emt 0:10:01]} ({Predecessor:} 10. f4 Bd7 11. Kb1 Qb6 12. Nf3 O-O-O 13. a3 Kb8 14. Nd2 Qc7 15. Nc4 b5 16. Ne3 {½-½ Karacsonyi,K (2147)-Harikrishnan,A (2396) Novi Sad Serbia op-A 2022 (1)}) 10... b5 {[%emt 0:06:36]} 11. Qg3 {[%emt 0:01:02]} Bf8 {[%emt 0:01:02]} (11... b4 $11 12. Nb1 Kf8) 12. Kb1 {[%emt 0:03:35]} Bd7 {[%emt 0:01:05]} 13. Ne2 {[%emt 0:01:32] White has more active pieces. The black rooks are badly placed.} Qb6 {[%emt 0:03:55]} 14. Nf4 {[%emt 0:00:51]} O-O-O {[%emt 0:12:29]} 15. Nh5 {[%emt 0:00:57]} Be7 {[%emt 0:00:06]} 16. Qf4 {[%emt 0:02:14]} Ne5 {[%emt 0:17:54]} 17. Be2 {[%emt 0:20:17]} (17. Nd4 $5 {[%cal Rh5f6]}) 17... Ng6 {[%emt 0:00:50]} 18. Qd2 {[%emt 0:02:51]} Bc6 {[%emt 0:05:03]} 19. Bd3 {[%emt 0:00:06]} d5 {[%emt 0:00:52]} 20. Qe2 {[%emt 0:01:22]} Rd7 {[%emt 0:04:56]} 21. f4 {[%emt 0:01:26]} Rhd8 {[%emt 0:06:40]} (21... dxe4 {keeps more tension.} 22. Bxe4 Rxd1+ 23. Rxd1 Bxe4 24. Qxe4 f5) 22. e5 {[%emt 0:00:29]} fxe5 {[%emt 0:02:14]} 23. fxe5 {[%emt 0:00:12]} a5 {[%emt 0:00:18]} (23... Qc7 $11 {deserves consideration.}) 24. Rhf1 $16 {[%emt 0:01:46]} a4 {[%emt 0:00:15] [#]} ({Black should try} 24... Rf8 $14) 25. Nd4 $1 {[%emt 0:01:13]} a3 $2 {[%emt 0:07:43]} (25... Qxd4 $16 {is a better defense.} 26. Bxg6 {[%mdl 64] Discovered Attack} Qc4) 26. Nxc6 $18 {[%emt 0:03:23]} (26. Nxb5 $2 Rb7 27. b3 (27. Bxg6 $2 hxg6 28. Nd6+ Bxd6 $19) 27... Bxb5 $19) 26... Qxc6 {[%emt 0:00:01]} 27. Bxb5 {[%emt 0:02:39]} Qc5 {[%emt 0:00:16]} 28. Rf3 {[%emt 0:18:11] And now Rc3 would win.} ({Resist} 28. Rxf7 $6 Rc7 29. Rf3 (29. Rxh7 Rf8 $14) 29... Rf8 $18) 28... Rc7 {[%emt 0:03:06]} 29. Rxa3 {[%emt 0:05:58] Hoping for Rc3.} ({Worse is} 29. bxa3 Nxe5 30. Rb3 Nc4 31. Ba6+ Kd7 32. Bb5+ Kc8 33. Ba6+ Kd7 34. Bb5+ Kc8 $11) 29... Nxe5 {[%emt 0:02:35]} 30. Rb3 {[%emt 0:06:54]} Nc4 {[%emt 0:05:27]} 31. Rf1 {[%emt 0:01:50]} (31. Ba6+ $18 Kd7 32. Nf4) 31... Rd6 $16 {[%emt 0:01:28]} 32. a4 {[%emt 0:00:53]} ({Not} 32. Rxf7 Qg1+ 33. Rf1 Qxf1+ 34. Qxf1 Nd2+ 35. Kc1 Nxf1 36. Bxf1 Bg5+ 37. Kd1 Rf7 $17) 32... f5 {[%emt 0:00:42][%mdl 8192]} (32... Bg5 $16 {is a better chance.}) 33. Ng7 $18 {[%emt 0:01:52]} e5 {[%emt 0:10:21]} (33... Qd4 $142 34. Nxe6 Qe4 35. Qxe4 dxe4) 34. Nxf5 {[%emt 0:00:29]} Rg6 {[%emt 0:01:18]} 35. Bxc4 {[%emt 0:01:47]} dxc4 {[%emt 0:00:23]} 36. Rb5 {[%emt 0:00:06][%mdl 64] Skewer, Deflection} Qc6 {[%emt 0:00:53]} 37. Qxe5 {[%emt 0:03:10] White mates.} Bd8 {[%emt 0:00:56]} 38. Rd1 {[%emt 0:00:55]} Bf6 {[%emt 0:02:31] [#]} 39. Ne7+ $1 {[%emt 0:01:08][%mdl 512]} Bxe7 {[%emt 0:00:11]} 40. Qh8+ {[%emt 0:00:02] A cool game by To.   Weighted Error Value: White=0.18 (very precise) /Black=0.53} 1-0

[Event "SixDays Budapest March IM 2023"]
[Site "Budapest"]
[Date "2023.03.28"]
[Round "8.4"]
[White "Horvath, David"]
[Black "Udvardi, Zalan"]
[Result "1/2-1/2"]
[ECO "A46"]
[WhiteElo "2380"]
[BlackElo "2260"]
[Annotator "TA"]
[PlyCount "51"]
[EventDate "2023.03.24"]
[EventType "tourn"]
[EventCountry "HUN"]
[SourceTitle "playchess.com"]
[Source "ChessBase"]
[SourceQuality "1"]
[TimeControl "5400+30"]

{[%evp 22,27,-5,-4,-5,-8,9,0]} 1. d4 {[%emt 0:00:42]} Nf6 {[%emt 0:00:40]} 2. Nf3 {[%emt 0:00:07]} d5 {[%emt 0:00:04]} 3. c4 {[%emt 0:00:36]} e6 {[%emt 0:00:07]} 4. cxd5 {[%emt 0:00:07]} exd5 {[%emt 0:00:13]} 5. Nc3 {[%emt 0:00:07]} c6 {[%emt 0:00:18]} 6. Qc2 {[%emt 0:04:55]} g6 {[%emt 0:00:17]} 7. Bg5 {[%emt 0:01:43]} Be7 {[%emt 0:00:19]} 8. e3 {[%emt 0:00:34]} Bf5 {[%emt 0:00:06]} 9. Bd3 {[%emt 0:01:18]} Bxd3 {[%emt 0:03:48]} 10. Qxd3 {[%emt 0:00:02]} Nbd7 {[%emt 0:02:47]} 11. O-O {[%emt 0:04:23]} O-O {[%emt 0:00:09]} 12. Rab1 {[%emt 0:03:27] The position is equal.} Re8 {[%emt 0:00:44] D36: Queen's Gambit Declined: Exchange Variation: Main line (5 Bg5 c6 6 Qc2).} 13. b4 {[%emt 0:01:11]} b5 {[%emt 0:00:21]} 14. a4 {[%emt 0:21:51] [#] An uneventful encounter.   Weighted Error Value: White=0.00 (flawless) /Black=0.07 (flawless)} {Predecessor:} a6 $146 15. a5 Ne4 16. Bxe7 Qxe7 17. Rfc1 Nd6 18. Ne2 Nc4 19. Nd2 Rad8 20. Qc3 Qg5 21. Nxc4 dxc4 22. Ng3 Nf6 23. Re1 Nd5 24. Qc2 Qe7 25. Qd2 f5 26. Qb2 {½-½ Caicedo Anguila,J (1591)-Palacios Gordillo,C (1583) Pan American-ch U20 Girls 2022 (9)} 1/2-1/2

[Event "SixDays Budapest March IM 2023"]
[Site "Budapest"]
[Date "2023.03.28"]
[Round "8.5"]
[White "Neszmenyi, Zoltan"]
[Black "Szeberenyi, Adam"]
[Result "0-1"]
[ECO "D85"]
[WhiteElo "1885"]
[BlackElo "2338"]
[Annotator "TA"]
[PlyCount "48"]
[EventDate "2023.03.24"]
[EventType "tourn"]
[EventCountry "HUN"]
[SourceTitle "playchess.com"]
[Source "ChessBase"]
[SourceQuality "1"]
[TimeControl "5400+30"]

{[%evp 15,48,-12,-2,-15,-8,-36,-28,-96,-61,-86,-67,-72,-31,-170,-160,-367,-365,-370,-356,-353,-356,-1007,-432,-427,-315,-311,-275,-275,-275,-339,-339,-493,-485,-481,-474]} 1. c4 {[%emt 0:00:41]} Nf6 {[%emt 0:02:00]} 2. Nf3 {[%emt 0:00:13]} g6 {[%emt 0:00:11]} 3. d4 {[%emt 0:00:06]} Bg7 {[%emt 0:00:33]} 4. Nc3 {[%emt 0:00:08]} d5 {[%emt 0:02:35]} 5. cxd5 {[%emt 0:00:05]} Nxd5 {[%emt 0:00:03]} 6. e4 {[%emt 0:00:05]} Nxc3 {[%emt 0:00:03]} 7. bxc3 {[%emt 0:00:05]} c5 {[%emt 0:00:28]} 8. Rb1 {[%emt 0:00:10] 8.h3 is the modern continuation.} O-O $1 {[%emt 0:00:27]} 9. Bc4 {[%emt 0:05:56] D85: Exchange Grünfeld: Unusual White 7th moves and lines with 7 Nf3.} Nc6 {[%emt 0:02:07]} 10. Be3 {[%emt 0:00:37]} Bg4 {[%emt 0:04:07]} 11. e5 {[%emt 0:09:56]} (11. Rxb7 $2 Na5 12. Bd5 e6 $19) (11. Bd5 $11 {keeps the balance.}) 11... Qc7 {[%emt 0:11:18] ...cxd4 is the strong threat.} 12. Be2 {[%emt 0:16:05]} ({Much weaker is} 12. dxc5 Nxe5 13. Be2 Nxf3+ 14. Bxf3 Bxc3+ 15. Kf1 Rad8 $17) 12... Rfd8 {[%emt 0:07:36]} 13. Qa4 {[%emt 0:07:14] [#]} Qd7 $146 {[%emt 0:21:25]} ({Predecessor:} 13... Rac8 14. O-O Bd7 15. Qa3 cxd4 16. cxd4 e6 17. Rfc1 Bf8 18. Qb2 Qa5 19. Bd2 Qa3 20. Qxa3 Bxa3 {½-½ Pang,Y-Hatibie,T (1619) Hong Kong-ch qual 2013 (1)}) 14. Bb5 {[%emt 0:05:47] Loses the game.} (14. dxc5 $15 Bxf3 15. Bxf3) 14... Qf5 $19 {[%emt 0:04:40][%csl LRb1,LRf3]} 15. Nd2 {[%emt 0:06:14]} (15. O-O $17 {is a better defense.} Bxf3 16. gxf3) 15... cxd4 {[%emt 0:05:32]} 16. cxd4 {[%emt 0:03:52] [#]} Nxd4 {[%emt 0:07:49][%mdl 512]} 17. Bxd4 {[%emt 0:05:07] [#]} a6 $1 {[%emt 0:00:04]} 18. Bf1 {[%emt 0:13:28]} (18. Be3 axb5 19. Qb4) 18... b5 {[%emt 0:01:35]} (18... Bh6 $142 {( -> ...Bxd2+)} 19. f3 Bxd2+ 20. Kxd2 Qxb1) 19. Qb4 {[%emt 0:02:20]} Bxe5 {[%emt 0:10:47]} 20. Bxe5 {[%emt 0:05:08] And now Bd4 would win.} Qxe5+ {[%emt 0:00:06]} 21. Qe4 {[%emt 0:03:17]} Qc3 {[%emt 0:00:03][%csl Gd8][%cal Rc3d2]} 22. Qb4 {[%emt 0:04:26] [#]} Qc2 {[%emt 0:01:11][%cal Od8d2]} 23. Nf3 {[%emt 0:05:49]} (23. f3 $142 Rxd2 {[%mdl 64] Remove Defender, Deflection} 24. Qxd2 Qxb1+ 25. Qd1) 23... Bxf3 {[%emt 0:01:07]} ({Inferior is} 23... Qxa2 24. Be2 $17) 24. gxf3 {[%emt 0:00:43]} a5 {[%emt 0:00:04] Weighted Error Value: White=1.04/Black=0.40} ({Stronger than} 24... Qxa2 25. Bh3 $15) 0-1

[Event "SixDays Budapest March IM 2023"]
[Site "Budapest"]
[Date "2023.03.29"]
[Round "9.1"]
[White "Szeberenyi, Adam"]
[Black "Pham, Tran Gia Phuc"]
[Result "1-0"]
[ECO "A39"]
[WhiteElo "2338"]
[BlackElo "2238"]
[Annotator "TA"]
[PlyCount "105"]
[EventDate "2023.03.24"]
[EventType "tourn"]
[EventCountry "HUN"]
[SourceTitle "playchess.com"]
[Source "ChessBase"]
[SourceQuality "1"]
[TimeControl "5400+30"]

{[%evp 22,105,-8,-14,0,0,0,0,0,0,15,-12,47,61,54,61,21,16,3,14,87,85,86,105,84,80,109,108,110,73,76,73,143,137,165,154,187,185,188,188,181,143,194,189,198,195,197,183,176,187,177,185,188,178,186,184,191,181,244,201,252,207,481,485,776,572,564,557,612,557,550,550,3674,2962,29953,29954,29969,29969,29970,29965,29960,29963,29981,29982,29982,29983]} 1. Nf3 Nf6 2. g3 c5 3. Bg2 Nc6 4. O-O g6 5. c4 Bg7 6. Nc3 O-O 7. d4 d6 8. dxc5 dxc5 9. Be3 Qa5 10. Qa4 Qxa4 11. Nxa4 b6 12. Rad1 Ba6 {E65: King's Indian: Fianchetto: 6...c5 7 0-0 without d5 by White.} 13. b3 $1 Rad8 14. Bf4 {[#]} Nh5 $146 {The position is equal.} ({Predecessor:} 14... Nb4 15. Ne5 Nh5 16. a3 Nxf4 17. gxf4 Bxe5 18. fxe5 Nc2 19. Nc3 Bc8 20. Nd5 Rd7 {0-1 Salimi,K (1792)-Eemen,S (1942) IRI-ch U14 Chess.com INT 2021 (5)}) 15. Bc1 Nb4 16. Bg5 (16. g4 $5 Nf6 17. Ne5 $11) 16... Nf6 (16... Rfe8 $11) 17. Ne5 $1 $14 h6 18. a3 Nc2 $1 {And now ...Rxd1 would win.} (18... hxg5 19. axb4 cxb4 20. Nc6 $16) 19. Bxf6 Bxf6 20. Nd7 Rfe8 (20... Nd4 $1 $11 21. Nxf8 Rxf8) 21. Nxf6+ $1 $16 exf6 22. e3 {Prevents Nd4} Nxa3 {[#]} 23. Nc3 $1 {Black must now prevent Ra1.} Nxc4 24. bxc4 Bxc4 25. Rxd8 Rxd8 26. Ra1 Rd7 {[#]} (26... Rd3 $142 27. Rc1 Bb3) 27. Bf1 $1 Bb3 28. Bb5 Rc7 29. Ra6 Kf8 30. Kf1 Be6 31. Ke1 c4 (31... f5 $16 32. Be2 Bd7) 32. Kd2 $18 Bc8 33. Ra4 Be6 34. e4 a5 35. Ke3 Rc8 36. f3 f5 37. exf5 gxf5 38. Ra2 Ke7 39. Rd2 Rc5 (39... h5 $142 40. Ba4 Rb8) 40. Rb2 Kd6 41. Kd4 {Hoping for Be8.} f6 $2 (41... Ke7 42. Na4 {[%mdl 64] Deflection} (42. Ba4 Rc8 $18) 42... Rd5+ 43. Kxc4 Kd6) 42. Be8 Kc7 {[#]} (42... Ke7 $142 43. Rxb6 Rc8) 43. Rxb6 $3 {[%mdl 576] Decoy} Re5 44. Rb5 Re1 45. Rb1 Rxb1 46. Nxb1 Kb6 47. f4 a4 48. Bxa4 {White mates.} Ka5 49. Bc6 Kb4 50. Nc3 Kb3 51. Bd5 Bxd5 52. Nxd5 h5 53. h4 {Weighted Error Value: White=0.14 (very precise) /Black=0.44} 1-0

[Event "SixDays Budapest March IM 2023"]
[Site "Budapest"]
[Date "2023.03.29"]
[Round "9.2"]
[White "Udvardi, Zalan"]
[Black "Neszmenyi, Zoltan"]
[Result "1-0"]
[ECO "C50"]
[WhiteElo "2260"]
[BlackElo "1885"]
[Annotator "TA"]
[PlyCount "25"]
[EventDate "2023.03.24"]
[EventType "tourn"]
[EventCountry "HUN"]
[SourceTitle "playchess.com"]
[Source "ChessBase"]
[SourceQuality "1"]
[TimeControl "5400+30"]

{[%evp 10,25,15,12,9,18,20,0,76,83,112,95,304,302,323,319,316,268]} 1. e4 {[%emt 0:10:37]} e5 {[%emt 0:00:34]} 2. Nf3 {[%emt 0:00:04]} Nc6 {[%emt 0:00:03]} 3. Bc4 {[%emt 0:00:26]} Bc5 {[%emt 0:00:06]} 4. d3 {[%emt 0:00:18]} Nf6 {[%emt 0:00:06]} 5. O-O {[%emt 0:01:19]} d6 {[%emt 0:00:15]} 6. c3 {[%emt 0:00:36][%cal Bc2c3,Bc3d4][%mdl 32]} a5 {[%emt 0:00:09] C54: Giuoco Piano: 4 c3 Nf6, main lines with 5 d4 and 5 d3.} 7. Re1 {[%emt 0:09:50]} h6 {[%emt 0:02:43]} 8. d4 {[%emt 0:04:40] [#]} exd4 $146 {[%emt 0:06:23]} (8... Ba7 $11 {keeps the balance.}) ({Predecessor:} 8... Ba7 9. Na3 O-O 10. Nb5 Bb6 11. Bd3 Re8 12. h3 Bd7 13. d5 Ne7 14. Be3 Bxe3 15. Rxe3 {0-1 Eugene,F (2397)-Tin,J (2561) Antwerp World Uni op 2022 (7)}) 9. cxd4 $16 {[%emt 0:00:32]} Bb4 {[%emt 0:02:05]} 10. Re2 {[%emt 0:11:17] Hoping for a3.} Ne7 $2 {[%emt 0:10:15]} (10... a4 $16 {was called for.}) 11. a3 $18 {[%emt 0:01:21][%mdl 64] [#] Trapped Piece. White has a decisive advantage.} d5 {[%emt 0:06:57]} 12. e5 {[%emt 0:00:11]} ({Weaker is} 12. Bxd5 Nexd5 13. Qa4+ (13. exd5+ Be7 $14) (13. axb4 Nxb4 14. Bd2 Bg4 $16) 13... Bd7 14. exd5+ {[%mdl 64] Discovered Attack} Be7 $14) (12. exd5 Bd6 $16) 12... Nd7 {[%emt 0:05:34]} 13. Bd3 {[%emt 0:00:20] White took control after the opening.   Weighted Error Value: White=0.06 (flawless) /Black=0.43} 1-0